bitfinex/quotes_BTCUSD_20250206
["timestamp","ask_amount","ask_price","bid_price","bid_amount"]
[1738856163762,0.0002,97489.0,97486.0,0.15]
[1738856163967,0.08191895,97501.0,97497.0,0.30385]
[1738856164175,0.07578005,97501.0,97500.0,0.326846]
[1738856164398,0.01,97514.0,97504.0,0.153839]
[1738856164621,0.00036349,97505.0,97504.0,0.27934265]
[1738856164833,0.00036349,97505.0,97504.0,0.12944245]
[1738856165501,0.00036349,97505.0,97504.0,0.27944245]
[1738856165964,0.00036349,97505.0,97504.0,0.28844245]
[1738856166172,0.00036349,97505.0,97504.0,0.27944245]
[1738856166396,0.00036349,97505.0,97504.0,0.55394998]
[1738856166606,0.0002,97529.0,97528.0,0.303801]
[1738856166820,0.0002,97529.0,97528.0,0.42930465]
[1738856167039,0.0002,97529.0,97528.0,0.43321123]
[1738856167271,0.0002,97529.0,97528.0,0.27941023]
[1738856167476,0.0102,97529.0,97528.0,0.10641023]
[1738856167700,0.01333922,97529.0,97528.0,0.00390658]
[1738856168159,0.01,97524.0,97512.0,0.02062849]
[1738856168384,0.01,97524.0,97513.0,0.12550365]
[1738856168585,0.00313922,97525.0,97513.0,0.12550365]
[1738856168818,0.0002,97529.0,97528.0,0.002]
[1738856169022,0.0002,97529.0,97528.0,0.12750365]
[1738856169225,0.00333922,97529.0,97528.0,0.10450365]
[1738856169424,0.0002,97529.0,97528.0,0.10250365]
[1738856169580,0.0002,97529.0,97528.0,0.12550365]
[1738856169969,0.0002,97529.0,97528.0,0.10250365]
[1738856170368,0.0002,97529.0,97528.0,0.12750365]
[1738856170574,0.0002,97529.0,97528.0,0.27750365]
[1738856171058,0.0002,97529.0,97528.0,0.28650365]
[1738856171411,0.0002,97529.0,97528.0,0.13650365]
[1738856172032,0.00333922,97529.0,97528.0,0.11350365]
[1738856172219,0.0002,97529.0,97528.0,0.11350365]
[1738856172586,0.0002,97529.0,97528.0,0.29030465]
[1738856173324,0.0002,97529.0,97528.0,0.13650365]
[1738856174121,0.00333922,97529.0,97528.0,0.11350365]
[1738856174351,0.00333922,97529.0,97528.0,0.011]
[1738856174751,0.00333922,97529.0,97528.0,0.002]
[1738856174952,0.00313922,97524.0,97517.0,0.00965731]
[1738856175155,0.00313922,97524.0,97518.0,0.12919329]
[1738856175367,0.00313922,97520.0,97518.0,0.10619329]
[1738856176052,0.00313922,97519.0,97518.0,0.10619329]
[1738856176388,0.00313922,97519.0,97518.0,0.10250365]
[1738856176803,0.00313922,97519.0,97518.0,0.10619502]
[1738856177000,0.0789,97522.0,97518.0,0.10619502]
[1738856177001,0.00313922,97520.0,97518.0,0.10619502]
[1738856177217,0.00313922,97520.0,97519.0,0.023]
[1738856177413,0.00313922,97520.0,97519.0,0.12550365]
[1738856177682,0.0789,97522.0,97517.0,0.003]
[1738856177683,0.01313922,97518.0,97517.0,0.003]
[1738856178021,0.01313922,97518.0,97498.0,0.00950212]
[1738856178022,0.00313922,97499.0,97498.0,0.00950212]
[1738856178221,0.24448622,97499.0,97498.0,0.00950212]
[1738856178473,0.29178622,97499.0,97498.0,0.00950212]
[1738856178673,0.29178622,97499.0,97471.0,0.15]
[1738856178674,0.1248,97499.0,97471.0,0.15]
[1738856178883,0.12793922,97499.0,97498.0,0.10250365]
[1738856179080,0.13793922,97499.0,97498.0,0.10250365]
[1738856179251,0.13793922,97499.0,97498.0,0.10450365]
[1738856179833,0.13793922,97499.0,97498.0,0.10245778]
[1738856180243,0.13793922,97499.0,97016.0,60.0]
[1738856180244,0.00313922,97486.0,97476.0,0.02005793]
[1738856180452,0.1248,97499.0,97477.0,0.10250365]
[1738856180453,0.00313922,97481.0,97477.0,0.10250365]
[1738856180656,0.00313922,97477.0,97476.0,0.00013921]
[1738856180866,0.09013922,97477.0,97476.0,0.00013921]
[1738856181069,0.13823922,97477.0,97476.0,0.00013921]
[1738856181278,0.30113514,97477.0,97476.0,0.00013921]
[1738856181484,0.00313922,97444.0,97439.0,0.09076275]
[1738856181682,0.45179457,97477.0,97420.0,0.29494521]
[1738856181683,0.00313922,97443.0,97440.0,0.10250365]
[1738856181829,0.00313922,97441.0,97440.0,0.10250365]
[1738856182587,0.00313922,97436.0,97435.0,0.10832]
[1738856182787,0.01313922,97436.0,97435.0,0.10832]
[1738856183473,0.01313922,97436.0,97435.0,0.11188312]
[1738856183672,0.01,97436.0,97435.0,0.00356312]
[1738856183873,0.01313922,97436.0,97435.0,0.00356312]
[1738856184140,0.01313922,97436.0,97435.0,0.009]
[1738856184344,0.18069842,97436.0,97435.0,0.009]
[1738856184551,0.16708622,97436.0,97435.0,0.01258599]
[1738856184767,0.16708622,97436.0,97435.0,0.009]
[1738856184988,0.16708622,97436.0,97406.0,0.00022407]
[1738856184989,0.01313922,97407.0,97406.0,0.00022407]
[1738856185167,0.01313922,97407.0,97406.0,0.10319159]
[1738856185422,0.01313922,97407.0,97406.0,0.10660829]
[1738856185634,0.00313922,97412.0,97406.0,0.26060129]
[1738856185842,0.00313922,97418.0,97407.0,0.12550365]
[1738856186047,0.01313922,97415.0,97408.0,0.023]
[1738856186256,0.01313922,97415.0,97410.0,0.023]
[1738856186483,0.01313922,97415.0,97412.0,0.023]
[1738856186693,0.00313922,97407.0,97406.0,0.00068794]
[1738856186864,0.01313922,97407.0,97406.0,0.00068794]
[1738856187267,0.06273922,97407.0,97406.0,0.00068794]
[1738856187688,0.06273922,97407.0,97406.0,0.00468794]
[1738856187892,0.06273922,97407.0,97406.0,0.01168794]
[1738856188096,0.06273922,97407.0,97406.0,0.00768794]
[1738856188320,0.23113614,97407.0,97406.0,0.00064184]
[1738856188526,0.06273922,97407.0,97406.0,0.00764184]
[1738856189515,0.05273922,97407.0,97406.0,0.00764184]
[1738856189735,0.06273922,97407.0,97406.0,0.00064184]
[1738856190339,0.06273922,97407.0,97406.0,0.00464184]
[1738856190540,0.06273922,97407.0,97406.0,0.00064184]
[1738856190788,0.06273922,97407.0,97406.0,0.10714549]
[1738856190789,0.05273922,97407.0,97406.0,0.10714549]
[1738856190988,0.06273922,97407.0,97406.0,0.10714549]
[1738856191224,0.06273922,97407.0,97406.0,0.10314549]
[1738856191428,0.06373922,97407.0,97406.0,0.10714549]
[1738856191781,0.06273922,97407.0,97406.0,0.00064184]
[1738856193010,0.06273922,97407.0,97406.0,0.00864184]
[1738856193258,0.31433834,97407.0,97406.0,0.00864184]
[1738856193461,0.33363979,97407.0,97406.0,0.00064184]
[1738856193661,0.31923587,97407.0,97406.0,0.00864184]
[1738856193865,0.55115482,97407.0,97406.0,0.00864184]
[1738856194104,0.16716022,97389.0,97388.0,0.0001068]
[1738856194303,0.16716022,97389.0,97388.0,0.00024599]
[1738856194304,0.09462284,97389.0,97388.0,0.00024599]
[1738856194451,0.09333922,97389.0,97388.0,0.00024599]
[1738856195439,0.09433922,97389.0,97388.0,0.00024599]
[1738856195866,0.19812649,97389.0,97388.0,0.00024599]
[1738856196070,0.24622649,97389.0,97388.0,0.00024599]
[1738856196306,0.24494287,97389.0,97388.0,0.00024599]
[1738856196627,0.24494287,97389.0,97388.0,0.00424599]
[1738856197384,0.39394287,97389.0,97388.0,0.00024599]
[1738856197576,0.00313922,97352.0,97351.0,0.0002]
[1738856197761,0.00313922,97352.0,97351.0,0.00377431]
[1738856199232,0.01313922,97352.0,97351.0,0.00377431]
[1738856199435,0.31582694,97352.0,97351.0,0.00377431]
[1738856199636,0.31454287,97352.0,97351.0,0.00033914]
[1738856199837,0.39646182,97352.0,97351.0,0.00033914]
[1738856200073,0.39746182,97352.0,97351.0,0.00833914]
[1738856200227,0.39646182,97352.0,97351.0,0.00133914]
[1738856200588,0.39646182,97352.0,97351.0,0.00533914]
[1738856200797,0.06203922,97352.0,97351.0,0.00433914]
[1738856200999,0.07645314,97352.0,97351.0,0.00433914]
[1738856201203,0.07773726,97352.0,97351.0,0.00456342]
[1738856201405,0.07645314,97352.0,97351.0,0.00456342]
[1738856201625,0.06332334,97352.0,97351.0,0.00456342]
[1738856202005,0.16782699,97352.0,97351.0,0.00456342]
[1738856202152,0.16782699,97352.0,97351.0,0.00056342]
[1738856202564,0.31782699,97352.0,97351.0,0.00056342]
[1738856202764,0.31654287,97352.0,97351.0,0.00056342]
[1738856202982,0.4059073,97352.0,97351.0,0.00056342]
[1738856203190,0.31862287,97352.0,97351.0,0.00156342]
[1738856203414,0.31962287,97352.0,97351.0,0.00156342]
[1738856203823,0.46962287,97352.0,97351.0,0.00156342]
[1738856204160,0.48632732,97352.0,97351.0,0.00156342]
[1738856204355,0.43522976,97352.0,97351.0,0.00156342]
[1738856204564,0.33632732,97352.0,97351.0,0.00156342]
[1738856205712,0.07974367,97352.0,97351.0,0.00156342]
[1738856205929,0.02084367,97352.0,97351.0,0.00156342]
[1738856206829,0.02084367,97352.0,97351.0,0.10406707]
[1738856206830,0.01770445,97352.0,97351.0,0.10406707]
[1738856207010,0.01670445,97352.0,97351.0,0.27606707]
[1738856207238,0.01,97365.0,97356.0,0.154073]
[1738856207444,0.01,97365.0,97357.0,0.10250365]
[1738856207445,0.08191895,97359.0,97357.0,0.10250365]
[1738856207658,0.08191895,97359.0,97357.0,0.10595947]
[1738856207854,0.08191895,97359.0,97357.0,0.00345582]
[1738856207855,0.00313922,97358.0,97357.0,0.00345582]
[1738856208263,0.00313922,97358.0,97351.0,0.00456342]
[1738856208264,0.00313922,97353.0,97351.0,0.00456342]
[1738856208478,0.00313922,97352.0,97351.0,0.10306707]
[1738856208892,0.01313922,97352.0,97351.0,0.00456342]
[1738856209093,0.01313922,97352.0,97351.0,0.00056342]
[1738856209513,0.01313922,97352.0,97351.0,0.00956342]
[1738856209719,0.01313922,97352.0,97351.0,0.00056342]
[1738856209894,0.01413922,97352.0,97351.0,0.00956342]
[1738856210770,0.02056212,97352.0,97351.0,0.00956342]
[1738856210979,0.01056212,97352.0,97351.0,0.01156342]
[1738856211185,0.02056212,97352.0,97351.0,0.01156342]
[1738856211799,0.01413922,97352.0,97351.0,0.01156342]
[1738856212004,0.16821922,97352.0,97351.0,0.01156342]
[1738856212208,0.34790707,97352.0,97351.0,0.01156342]
[1738856212411,0.34662287,97352.0,97351.0,0.01156342]
[1738856212828,0.49662287,97352.0,97351.0,0.00803665]
[1738856213041,0.59912652,97352.0,97351.0,0.00803665]
[1738856213451,0.60940726,97352.0,97351.0,0.00803665]
[1738856213655,0.50690361,97352.0,97351.0,0.00603665]
[1738856213861,0.50790361,97352.0,97351.0,0.00517533]
[1738856214483,0.50790361,97352.0,97311.0,0.00985338]
[1738856214484,0.39226322,97324.0,97311.0,0.0002]
[1738856214690,0.39226322,97324.0,97323.0,0.01057089]
[1738856215096,0.49476687,97324.0,97323.0,0.01057089]
[1738856215292,0.59727052,97324.0,97323.0,0.01057089]
[1738856215553,0.64567052,97324.0,97323.0,0.01057089]
[1738856215950,0.64767052,97324.0,97323.0,0.01057089]
[1738856216084,0.64567052,97324.0,97323.0,0.01057089]
[1738856216493,0.66237658,97324.0,97323.0,0.01157089]
[1738856216817,0.67198908,97324.0,97323.0,0.01157089]
[1738856217345,0.67298908,97324.0,97323.0,0.01157089]
[1738856217578,0.55773371,97324.0,97323.0,0.01157089]
[1738856217714,0.45736928,97324.0,97323.0,0.01157089]
[1738856217917,0.55987293,97324.0,97323.0,0.01157089]
[1738856218183,0.16728222,97312.0,97311.0,0.0002]
[1738856218378,0.32890265,97312.0,97311.0,0.0002]
[1738856218528,0.26978587,97312.0,97311.0,0.0002]
[1738856218731,0.01313922,97312.0,97311.0,0.0002]
[1738856219307,0.00313922,97312.0,97311.0,0.0002]
[1738856219526,0.03269736,97312.0,97311.0,0.01012632]
[1738856219741,0.03269736,97312.0,97311.0,0.00369909]
[1738856220160,0.03269736,97312.0,97311.0,0.0002]
[1738856220375,0.03269736,97312.0,97311.0,0.00369909]
[1738856220612,0.03369736,97312.0,97311.0,0.0002]
[1738856220845,0.01056454,97312.0,97311.0,0.0002]
[1738856221058,0.00642532,97312.0,97311.0,0.15784309]
[1738856221284,0.00642532,97312.0,97311.0,0.43334674]
[1738856221497,0.00642532,97312.0,97311.0,0.43434674]
[1738856221498,0.00742532,97312.0,97311.0,0.43434674]
[1738856221703,0.00742532,97312.0,97311.0,0.43334674]
[1738856221965,0.00956454,97312.0,97311.0,0.10620274]
[1738856222168,0.00313922,97312.0,97311.0,0.00469909]
[1738856222374,0.16728222,97312.0,97311.0,0.00469909]
[1738856222604,0.21334706,97312.0,97311.0,0.00469909]
[1738856222808,0.21206254,97312.0,97311.0,0.0002]
[1738856223449,0.21306254,97312.0,97311.0,0.0022]
[1738856223660,0.31556619,97312.0,97311.0,0.0022]
[1738856223878,0.31556619,97312.0,97311.0,0.0023068]
[1738856224092,0.46556619,97312.0,97311.0,0.0023068]
[1738856224528,0.31728722,97309.0,97308.0,0.00022407]
[1738856224735,0.16731522,97291.0,97274.0,0.0001068]
[1738856225159,0.01442422,97291.0,97274.0,0.0001068]
[1738856225586,0.01313922,97291.0,97274.0,0.0001068]
[1738856225814,0.00313922,97291.0,97289.0,0.154178]
[1738856226024,0.00313922,97291.0,97289.0,0.17473252]
[1738856226255,0.00360183,97291.0,97290.0,0.15399528]
[1738856226469,0.02476711,97291.0,97290.0,0.15399528]
[1738856226671,0.02476711,97291.0,97290.0,0.25649893]
[1738856226898,0.0007488,97291.0,97290.0,0.25649893]
[1738856227113,0.08191895,97325.0,97312.0,0.304143]
[1738856227323,0.07865612,97313.0,97312.0,0.304143]
[1738856227526,0.07865612,97313.0,97312.0,0.43114674]
[1738856227950,0.08191895,97325.0,97324.0,0.304124]
[1738856228159,0.08191895,97325.0,97324.0,0.42962765]
[1738856228362,0.08191895,97346.0,97345.0,0.304091]
[1738856228787,0.08191895,97346.0,97345.0,0.30793839]
[1738856229024,0.01,97364.0,97345.0,0.30793839]
[1738856229025,0.01,97364.0,97355.0,0.154075]
[1738856229243,0.01,97365.0,97355.0,0.25657865]
[1738856229448,0.08191895,97366.0,97355.0,0.25657865]
[1738856229449,0.09191895,97356.0,97355.0,0.10250365]
[1738856229685,0.09191895,97356.0,97355.0,0.10634185]
[1738856229908,0.09191895,97356.0,97355.0,0.0038382]
[1738856230113,0.09191895,97356.0,97345.0,7.142e-05]
[1738856230114,0.01,97364.0,97345.0,7.142e-05]
[1738856230339,0.01,97364.0,97363.0,0.154062]
[1738856230766,0.01,97364.0,97363.0,0.00382466]
[1738856231201,0.01,97364.0,97353.0,0.154077]
[1738856231415,0.01,97355.0,97346.0,0.154088]
[1738856231619,0.01,97351.0,97349.0,0.154084]
[1738856231826,0.01,97351.0,97350.0,0.154083]
[1738856232466,0.08191895,97365.0,97351.0,0.15]
[1738856232678,0.09191895,97377.0,97376.0,0.154042]
[1738856232909,0.09191895,97377.0,97376.0,0.25654565]
[1738856232910,0.08191895,97377.0,97376.0,0.25654565]
[1738856233330,0.08191895,97377.0,97376.0,0.42954565]
[1738856233770,0.08191895,97397.0,97376.0,0.42954565]
[1738856233771,0.01,97390.0,97386.0,0.154026]
[1738856233981,0.01,97394.0,97386.0,0.25652965]
[1738856234195,0.01,97389.0,97386.0,0.25652965]
[1738856234413,0.01,97389.0,97386.0,0.154026]
[1738856234898,0.00036316,97388.0,97387.0,0.10250365]
[1738856235106,0.00036316,97388.0,97387.0,0.27550365]
[1738856236222,0.04902471,97449.0,97387.0,0.27550365]
[1738856236223,0.01,97432.0,97406.0,0.303994]
[1738856236430,0.08248971,97407.0,97406.0,0.42949765]
[1738856236635,0.00057076,97407.0,97406.0,0.42949765]
[1738856236866,0.08191895,97427.0,97416.0,0.326978]
[1738856237084,0.08191895,97427.0,97416.0,0.42948165]
[1738856237300,0.09191895,97427.0,97416.0,0.42948165]
[1738856237516,0.09191895,97427.0,97416.0,0.40648165]
[1738856237923,0.09191895,97427.0,97416.0,0.25250365]
[1738856238136,0.09205808,97427.0,97417.0,0.10250365]
[1738856238344,0.09205808,97427.0,97418.0,0.153975]
[1738856238553,0.09205808,97427.0,97418.0,0.10250365]
[1738856238763,0.09205808,97427.0,97424.0,0.153965]
[1738856238983,0.08205808,97427.0,97419.0,0.15]
[1738856239215,0.01013913,97427.0,97425.0,0.153964]
[1738856239427,0.01013913,97427.0,97426.0,0.10250365]
[1738856239638,0.01,97421.0,97395.0,0.205348]
[1738856239847,0.01,97418.0,97410.0,0.153988]
[1738856240063,0.01,97415.0,97408.0,0.153989]
[1738856240269,0.01,97412.0,97411.0,0.153986]
[1738856240482,0.01,97421.0,97411.0,0.10250365]
[1738856240699,0.01013913,97427.0,97418.0,0.005]
[1738856240909,0.01013913,97427.0,97426.0,0.153963]
[1738856241573,0.00013913,97427.0,97426.0,0.153963]
[1738856241988,0.01013913,97427.0,97419.0,0.205298]
[1738856242203,0.01013913,97427.0,97418.0,0.005]
[1738856242204,0.01,97421.0,97418.0,0.005]
[1738856242404,0.01,97421.0,97419.0,0.153972]
[1738856242832,0.01,97421.0,97419.0,0.153974]
[1738856243036,0.01113913,97427.0,97426.0,0.153963]
[1738856243265,0.00113913,97427.0,97426.0,0.25646665]
[1738856243482,0.00113913,97427.0,97426.0,0.26017429]
[1738856243951,0.00013913,97427.0,97426.0,0.26017429]
[1738856244160,0.01013913,97427.0,97426.0,0.00370764]
[1738856244378,0.16510013,97427.0,97426.0,0.00370764]
[1738856244596,0.16510013,97427.0,97358.0,0.3]
[1738856244597,0.16,97420.0,97371.0,0.205399]
[1738856244800,0.16,97420.0,97350.0,0.308165]
[1738856244801,0.01,97396.0,97383.0,0.205374]
[1738856245007,0.01,97417.0,97400.0,0.023]
[1738856245228,0.08333913,97427.0,97406.0,0.15]
[1738856245229,0.01,97414.0,97406.0,0.15]
[1738856245437,0.00128309,97426.0,97393.0,0.15]
[1738856245438,0.01,97402.0,97401.0,0.10769028]
[1738856245640,0.01,97402.0,97401.0,0.10250365]
[1738856246077,0.01,97396.0,97384.0,0.01890826]
[1738856246293,0.01,97385.0,97384.0,0.01890826]
[1738856246727,0.01,97373.0,97366.0,0.154056]
[1738856246932,0.01,97373.0,97371.0,0.154049]
[1738856247138,0.08191895,97394.0,97350.0,0.29494521]
[1738856247139,0.01,97369.0,97350.0,0.29494521]
[1738856247353,0.01,97368.0,97366.0,0.154057]
[1738856247561,0.01,97375.0,97374.0,0.154045]
[1738856247795,0.01,97377.0,97376.0,0.154042]
[1738856248444,0.09191895,97394.0,97393.0,0.154015]
[1738856248654,0.09191895,97394.0,97384.0,0.003]
[1738856248655,0.01,97385.0,97384.0,0.157029]
[1738856248857,0.01,97385.0,97374.0,0.00046396]
[1738856249065,0.001,97377.0,97376.0,0.007]
[1738856249264,0.011,97377.0,97376.0,0.009]
[1738856249465,0.001,97377.0,97376.0,0.11150365]
[1738856249673,0.001,97377.0,97376.0,0.10950365]
[1738856250310,0.01,97379.0,97376.0,0.10250365]
[1738856250507,0.01,97382.0,97376.0,0.10250365]
[1738856250760,0.0096536,97419.0,97392.0,0.154016]
[1738856250761,0.01,97395.0,97392.0,0.154016]
[1738856250982,0.01,97395.0,97388.0,0.154023]
[1738856250983,0.09191895,97406.0,97399.0,0.154005]
[1738856251170,0.08191895,97406.0,97405.0,0.153996]
[1738856251378,0.0794,97422.0,97415.0,0.15398]
[1738856251553,0.08191895,97426.0,97415.0,0.40648365]
[1738856251766,0.01,97425.0,97415.0,0.40648365]
[1738856251969,0.08191895,97426.0,97415.0,0.42948365]
[1738856252179,0.09191895,97416.0,97415.0,0.15398]
[1738856252392,0.01,97416.0,97415.0,0.15398]
[1738856252594,0.01,97414.0,97413.0,0.153982]
[1738856252789,0.01,97414.0,97413.0,0.25648565]
[1738856253048,0.01,97414.0,97413.0,0.25648665]
[1738856253253,0.01,97414.0,97409.0,0.205318]
[1738856253372,0.01,97411.0,97409.0,0.153989]
[1738856253573,0.01,97410.0,97409.0,0.25649265]
[1738856253817,0.01,97410.0,97387.0,0.205364]
[1738856253818,0.01,97406.0,97359.0,0.01]
[1738856254022,0.01,97405.0,97404.0,0.153997]
[1738856254279,0.08205805,97426.0,97425.0,0.176964]
[1738856254280,0.0001391,97426.0,97425.0,0.176964]
[1738856254427,0.0001391,97426.0,97425.0,0.27946765]
[1738856255419,0.01,97423.0,97417.0,0.205301]
[1738856255620,0.01,97423.0,97419.0,0.205298]
[1738856255827,0.01,97423.0,97420.0,0.10250365]
[1738856256045,0.01,97423.0,97422.0,0.153969]
[1738856256245,0.0001391,97426.0,97425.0,0.153964]
[1738856256447,0.0101391,97426.0,97425.0,0.25846765]
[1738856256746,0.0111391,97426.0,97425.0,0.26546765]
[1738856256956,0.0101391,97426.0,97425.0,0.002]
[1738856257315,0.0101391,97426.0,97425.0,0.00890766]
[1738856257501,0.0101391,97426.0,97425.0,0.00690766]
[1738856257695,0.0111391,97426.0,97425.0,0.11641131]
[1738856257940,0.0011391,97426.0,97425.0,0.11641131]
[1738856258262,0.0011391,97426.0,97425.0,0.28941131]
[1738856258458,0.0011391,97426.0,97425.0,0.29241131]
[1738856258803,0.0011391,97426.0,97425.0,0.30334955]
[1738856259158,0.0011391,97426.0,97425.0,0.45731355]
[1738856259421,0.0011391,97426.0,97425.0,0.45631355]
[1738856259530,0.0001391,97426.0,97425.0,0.44631355]
[1738856259964,0.0011391,97426.0,97425.0,0.45331355]
[1738856260181,0.0001391,97426.0,97425.0,0.44631355]
[1738856260534,0.0001391,97426.0,97425.0,0.44831355]
[1738856261041,0.0001391,97426.0,97425.0,0.46836557]
[1738856261234,0.0001391,97426.0,97425.0,0.46636557]
[1738856261440,0.0001391,97426.0,97425.0,0.42331355]
[1738856261664,0.0001391,97426.0,97425.0,0.27331355]
[1738856261867,0.0001391,97426.0,97425.0,0.29631355]
[1738856262074,0.0001391,97426.0,97425.0,0.28637531]
[1738856262275,0.0001391,97426.0,97425.0,0.26737531]
[1738856262756,0.0011391,97426.0,97425.0,0.27237531]
[1738856262895,0.0001391,97426.0,97425.0,0.26337531]
[1738856263294,0.0011391,97426.0,97425.0,0.44537531]
[1738856264029,0.0001391,97426.0,97425.0,0.43637531]
[1738856264246,0.0001391,97426.0,97425.0,0.44037531]
[1738856264447,0.0001068,97443.0,97442.0,0.303937]
[1738856264624,0.0001068,97443.0,97442.0,0.42944065]
[1738856264823,0.0001068,97443.0,97442.0,0.4351711]
[1738856265031,0.0001068,97443.0,97442.0,0.4121711]
[1738856265235,0.0001068,97443.0,97442.0,0.2621711]
[1738856265764,0.0001068,97443.0,97442.0,0.15966745]
[1738856265765,0.0101068,97443.0,97442.0,0.15966745]
[1738856266087,0.0101068,97443.0,97442.0,0.16166745]
[1738856266532,0.0101068,97443.0,97442.0,0.01473045]
[1738856266667,0.0111068,97443.0,97442.0,0.01473045]
[1738856266922,0.0101068,97443.0,97442.0,0.16166745]
[1738856267118,0.0101068,97443.0,97442.0,0.01373045]
[1738856267331,0.0111068,97443.0,97442.0,0.16766745]
[1738856267529,0.0111068,97443.0,97442.0,0.01373045]
[1738856267762,0.0111068,97443.0,97442.0,0.01173045]
[1738856268134,0.0111068,97443.0,97442.0,0.01373045]
[1738856268317,0.09368964,97443.0,97442.0,0.01373045]
[1738856268517,0.09368964,97443.0,97442.0,0.008]
[1738856268518,0.29572564,97443.0,97442.0,0.008]
[1738856268722,0.2944428,97443.0,97442.0,0.006]
[1738856269128,0.1405068,97443.0,97442.0,0.006]
[1738856269949,0.1405068,97443.0,97442.0,0.01173479]
[1738856270431,0.1405068,97443.0,97442.0,0.008]
[1738856271268,0.1405068,97443.0,97442.0,0.161937]
[1738856271469,0.0011068,97443.0,97442.0,0.26444065]
[1738856271663,0.0011068,97443.0,97442.0,0.44317544]
[1738856272288,0.0011068,97443.0,97442.0,0.45323616]
[1738856272489,0.0001068,97443.0,97442.0,0.44523616]
[1738856272850,0.0011068,97443.0,97442.0,0.45823616]
[1738856273065,0.0001068,97443.0,97442.0,0.46986202]
[1738856273270,0.0001068,97443.0,97442.0,0.46586202]
[1738856273474,0.0001068,97443.0,97442.0,0.46786202]
[1738856273807,0.0001068,97443.0,97442.0,0.46586202]
[1738856274011,0.0011068,97443.0,97442.0,0.47486202]
[1738856274167,0.0011068,97443.0,97442.0,0.45423616]
[1738856275260,0.0021068,97443.0,97442.0,0.45423616]
[1738856275802,0.0011068,97443.0,97442.0,0.45423616]
[1738856275979,0.0011068,97443.0,97442.0,0.44523616]
[1738856276181,0.0011068,97443.0,97442.0,0.44823616]
[1738856276182,0.0001068,97443.0,97442.0,0.44823616]
[1738856276384,0.0011068,97443.0,97442.0,0.45723616]
[1738856276587,0.0011068,97443.0,97442.0,0.45423616]
[1738856277006,0.0011068,97443.0,97442.0,0.45723616]
[1738856277188,0.0001068,97443.0,97442.0,0.44823616]
[1738856277670,0.0011068,97443.0,97442.0,0.45723616]
[1738856277871,0.0001068,97443.0,97442.0,0.44823616]
[1738856278495,0.0001068,97443.0,97442.0,0.44523616]
[1738856278691,0.0001068,97443.0,97442.0,0.44823616]
[1738856279345,0.0011068,97443.0,97442.0,0.45423616]
[1738856279554,0.0011068,97443.0,97442.0,0.44823616]
[1738856279555,0.0001068,97443.0,97442.0,0.44823616]
[1738856279952,0.0011068,97443.0,97442.0,0.45423616]
[1738856280155,0.0011068,97443.0,97442.0,0.42223616]
[1738856280360,0.0011068,97443.0,97442.0,0.43423616]
[1738856280576,0.0021068,97443.0,97442.0,0.43423616]
[1738856280782,0.0021068,97443.0,97442.0,0.45723616]
[1738856280985,0.00042471,97449.0,97442.0,0.45723616]
[1738856280986,2.2e-07,97449.0,97443.0,0.023]
[1738856281186,0.08191895,97477.0,97476.0,0.153884]
[1738856281396,0.08191895,97477.0,97476.0,0.42938765]
[1738856281599,0.00013913,97477.0,97476.0,0.43502123]
[1738856281915,0.09191895,97494.0,97485.0,0.303869]
[1738856282095,0.01,97492.0,97485.0,0.42937265]
[1738856282291,0.0102245,97486.0,97485.0,0.10250365]
[1738856282491,0.0102245,97486.0,97485.0,0.00561159]
[1738856283027,0.0102245,97486.0,97485.0,0.15948059]
[1738856283231,0.0102245,97486.0,97485.0,0.162869]
[1738856283485,0.0102245,97486.0,97485.0,0.27096295]
[1738856283718,0.0102245,97486.0,97485.0,0.26196295]
[1738856284339,0.0002245,97486.0,97485.0,0.26196295]
[1738856284540,0.0002245,97486.0,97485.0,0.41196295]
[1738856284690,0.0002245,97486.0,97485.0,0.41396295]
[1738856284898,0.0002245,97486.0,97485.0,0.11009395]
[1738856285222,0.0102245,97486.0,97485.0,0.11009395]
[1738856285448,0.0102245,97486.0,97485.0,0.26396295]
[1738856285768,0.0102245,97486.0,97485.0,0.26596295]
[1738856285901,0.0102245,97486.0,97485.0,0.11209395]
[1738856286102,0.0102245,97486.0,97485.0,0.11009395]
[1738856286299,0.0102245,97486.0,97485.0,0.0267173]
[1738856286511,0.0102245,97486.0,97485.0,0.0247173]
[1738856286709,0.1342245,97486.0,97485.0,0.0247173]
[1738856286920,0.13550684,97486.0,97485.0,0.028127]
[1738856287130,0.1342245,97486.0,97485.0,0.020127]
[1738856287516,0.1342245,97486.0,97485.0,0.026127]
[1738856287714,0.1342245,97486.0,97485.0,0.020127]
[1738856287920,0.1342245,97486.0,97485.0,0.001]
[1738856288118,0.1342245,97486.0,97485.0,0.154869]
[1738856288319,0.0863245,97486.0,97485.0,0.16044771]
[1738856288521,0.0863245,97486.0,97485.0,0.00557871]
[1738856288754,0.0863245,97486.0,97482.0,0.205164]
[1738856288755,0.01,97483.0,97482.0,0.153873]
[1738856288940,0.01,97485.0,97484.0,0.153871]
[1738856289163,0.01,97483.0,97482.0,0.25637765]
[1738856289406,0.01,97475.0,97461.0,0.15]
[1738856289585,0.01,97475.0,97474.0,0.00992469]
[1738856289800,0.0763245,97486.0,97461.0,0.00013913]
[1738856289801,0.01,97464.0,97463.0,0.153904]
[1738856290037,0.01,97464.0,97463.0,0.25640765]
[1738856290216,0.01,97464.0,97463.0,0.10250365]
[1738856290371,0.01,97465.0,97463.0,0.10250365]
[1738856290577,0.01,97465.0,97464.0,0.25640565]
[1738856291130,0.08320122,97485.0,97461.0,0.01114348]
[1738856291131,0.01,97462.0,97461.0,0.01114348]
[1738856291541,0.01,97462.0,97461.0,0.15504613]
[1738856291672,0.01,97462.0,97461.0,0.00113913]
[1738856291911,0.01,97462.0,97461.0,0.15404613]
[1738856292110,0.01,97462.0,97461.0,0.25654978]
[1738856292726,0.246806,97462.0,97461.0,0.00013913]
[1738856292899,0.2969168,97462.0,97461.0,0.00013913]
[1738856293098,0.41851445,97462.0,97427.0,0.00022428]
[1738856293303,0.09,97429.0,97428.0,0.24472175]
[1738856293723,0.01,97435.0,97434.0,0.15395]
[1738856294141,0.01,97434.0,97433.0,0.153951]
[1738856294343,0.01,97431.0,97430.0,0.153955]
[1738856294550,0.08,97440.0,97428.0,0.24472175]
[1738856294551,0.01,97429.0,97428.0,0.24472175]
[1738856294765,0.01,97429.0,97428.0,0.09076275]
[1738856295167,0.01,97429.0,97428.0,0.09098682]
[1738856295656,0.163958,97429.0,97428.0,0.09098682]
[1738856295774,0.01,97429.0,97428.0,0.09098682]